bitfinex/quotes_SOLUSD_20250514
["timestamp","ask_amount","ask_price","bid_price","bid_amount"]
[1747243451971,28.37998905,173.76,173.73,1.7378]
[1747243452176,20.1404074,173.78,173.73,30.11778905]
[1747243452500,34.13439116,173.78,173.73,30.11778905]
[1747243453097,48.52039645,173.78,173.73,30.11778905]
[1747243453611,48.52039645,173.78,173.73,1.7378]
[1747243453919,28.87998905,173.77,173.73,1.7378]
[1747243454088,0.5,173.77,173.73,30.11778905]
[1747243454278,5.75440211,173.78,173.74,28.37998905]
[1747243454903,34.13439116,173.78,173.73,30.11778905]
[1747243455986,5.75440211,173.78,173.73,30.11778905]
[1747243456312,34.13439116,173.78,173.73,30.11778905]
[1747243456510,5.75440211,173.78,173.73,30.11778905]
[1747243456694,28.37998905,173.76,173.73,1.7378]
[1747243456889,28.37998905,173.77,173.73,1.7378]
[1747243457096,34.1350535,173.76,173.73,1.7378]
[1747243457297,28.37998905,173.75,173.73,1.7378]
[1747243457481,28.37998905,173.74,173.73,1.7378]
[1747243458101,5.75506445,173.76,173.73,1.7378]
[1747243458408,28.37998905,173.75,173.73,1.7378]
[1747243458608,5.75506445,173.76,173.73,1.7378]
[1747243458813,5.75506445,173.76,173.73,30.11778905]
[1747243459213,143.9543159,173.79,173.75,28.37998905]
[1747243459515,5.7543159,173.79,173.76,28.37998905]
[1747243459891,5.7543159,173.79,173.73,1.7378]
[1747243459892,28.37998905,173.82,173.77,28.37998905]
[1747243460088,28.37998905,173.81,173.76,28.37998905]
[1747243460291,28.37998905,173.79,173.74,28.37998905]
[1747243460930,28.37998905,173.78,173.74,28.37998905]
[1747243461088,5.75473326,173.77,173.73,30.11778905]
[1747243461400,28.37998905,173.76,173.73,1.7378]
[1747243462409,28.37998905,173.74,173.73,1.7378]
[1747243463414,34.13571599,173.74,173.73,1.7378]
[1747243463737,5.75572694,173.74,173.73,30.11778905]
[1747243463896,5.75572694,173.74,173.73,1.7378]
[1747243464713,5.75572694,173.74,173.73,30.11778905]
[1747243465329,5.75473326,173.77,173.73,30.11778905]
[1747243465532,5.75473326,173.77,173.76,28.37998905]
[1747243465736,5.754071,173.79,173.76,28.37998905]
[1747243466024,5.754071,173.79,173.74,29.72]
[1747243466025,5.754071,173.79,173.78,28.37998905]
[1747243466718,42.76245532,173.83,173.78,28.37998905]
[1747243466899,5.75307789,173.82,173.81,28.37998905]
[1747243467104,5.75307789,173.82,173.8,28.37998905]
[1747243467339,20.13163949,173.86,173.81,28.37998905]
[1747243467620,20.13163949,173.86,173.82,30.03838905]
[1747243467836,20.13163949,173.86,173.83,28.37998905]
[1747243468399,5.75175428,173.86,173.85,28.37998905]
[1747243468706,5.75175428,173.86,173.82,1.6584]
[1747243468911,5.7510927,173.88,173.85,28.37998905]
[1747243469125,5.7510927,173.88,173.86,28.37998905]
[1747243469315,5.75076197,173.89,173.85,28.37998905]
[1747243470018,5.75076197,173.89,173.82,1.6584]
[1747243470221,5.75076197,173.89,173.84,28.37998905]
[1747243470222,20.1276669,173.89,173.84,28.37998905]
[1747243470536,20.1276669,173.89,173.86,28.37998905]
[1747243470698,20.1276669,173.89,173.85,28.37998905]
[1747243472433,20.1276669,173.89,173.86,28.37998905]
[1747243472603,5.74910888,173.94,173.88,28.37998905]
[1747243472928,28.37998905,173.92,173.88,28.37998905]
[1747243473430,5.75010062,173.91,173.87,28.37998905]
[1747243473931,20.12535218,173.91,173.87,28.37998905]
[1747243474132,48.50534123,173.91,173.87,28.37998905]
[1747243474330,20.12535218,173.91,173.87,28.37998905]
[1747243474559,28.37998905,173.89,173.82,30.7384]
[1747243474737,28.37998905,173.89,173.85,28.37998905]
[1747243474911,28.37998905,173.9,173.85,28.37998905]
[1747243475105,28.37998905,173.9,173.82,1.6584]
[1747243475311,5.75142347,173.87,173.84,28.37998905]
[1747243475809,5.75142347,173.87,173.85,28.37998905]
[1747243476005,20.12998216,173.87,173.83,0.14216157]
[1747243476232,20.12998216,173.87,173.84,28.37998905]
[1747243477631,14.37855869,173.87,173.82,1.6584]
[1747243477936,28.37998905,173.84,173.82,1.6584]
[1747243478118,28.37998905,173.83,173.82,1.6584]
[1747243478336,28.37998905,173.84,173.82,1.6584]
[1747243478736,14.37855869,173.87,173.81,6.626]
[1747243478737,28.37998905,173.83,173.81,6.626]
[1747243479056,28.37998905,173.83,173.78,59.59758905]
[1747243479233,28.37998905,173.82,173.78,31.2176]
[1747243479426,28.37998905,173.81,173.78,31.2176]
[1747243479847,5.75340889,173.81,173.78,1.5376]
[1747243480433,5.75340889,173.81,173.78,29.91758905]
[1747243481855,14.38228484,173.83,173.78,29.91758905]
[1747243482031,5.75208513,173.85,173.81,28.37998905]
[1747243482233,5.75208513,173.85,173.82,28.37998905]
[1747243483867,5.75175428,173.86,173.83,28.37998905]
[1747243484040,5.75175428,173.86,173.85,28.37998905]
[1747243484239,5.7510927,173.88,173.85,28.37998905]
[1747243484651,5.7510927,173.88,173.82,28.37998905]
[1747243484652,28.37998905,173.86,173.82,28.37998905]
[1747243485050,0.5,173.87,173.83,28.37998905]
[1747243485237,0.5,173.87,173.84,28.37998905]
[1747243485437,5.7510927,173.88,173.84,28.37998905]
[1747243485835,34.13108175,173.88,173.84,28.37998905]
[1747243486061,34.13108175,173.88,173.83,28.37998905]
[1747243487069,34.13108175,173.88,173.84,28.37998905]
[1747243487369,5.7510927,173.88,173.85,28.37998905]
[1747243488040,5.75076197,173.89,173.85,28.37998905]
[1747243488241,34.13075102,173.89,173.85,28.37998905]
[1747243488449,28.37998905,173.88,173.84,28.37998905]
[1747243488645,28.37998905,173.88,173.83,28.37998905]
[1747243489052,28.37998905,173.87,173.82,28.37998905]
[1747243489253,28.37998905,173.88,173.83,28.37998905]
[1747243490033,5.75175428,173.86,173.83,28.37998905]
[1747243490267,5.75175428,173.86,173.81,0.14216157]
[1747243490462,5.75175428,173.86,173.83,28.37998905]
[1747243491466,5.75175428,173.86,173.82,28.37998905]
[1747243491848,5.75175428,173.86,173.83,28.37998905]
[1747243492271,28.37998905,173.87,173.82,28.37998905]
[1747243492467,28.37998905,173.85,173.81,28.37998905]
[1747243492956,28.37998905,173.85,173.8,28.37998905]
[1747243493157,28.37998905,173.84,173.8,28.37998905]
[1747243493388,28.37998905,173.85,173.8,28.37998905]
[1747243493759,54.74992281,173.92,173.8,28.37998905]
[1747243494089,28.37998905,173.83,173.77,6.5668]
[1747243494291,28.37998905,173.83,173.74,1.5296]
[1747243494292,28.37998905,173.78,173.74,1.5296]
[1747243494869,28.37998905,173.77,173.74,1.5296]
[1747243495264,28.37998905,173.78,173.74,1.5296]
[1747243495684,20.13808975,173.8,173.74,1.5296]
[1747243495996,28.37998905,173.78,173.74,1.5296]
[1747243496309,5.75473326,173.77,173.74,1.5296]
[1747243496483,5.75473326,173.77,173.75,28.37998905]
[1747243497466,5.754071,173.79,173.75,28.37998905]
[1747243498067,5.754071,173.79,173.74,1.5296]
[1747243498294,48.51923756,173.79,173.74,29.90958905]
[1747243498473,28.37998905,173.78,173.74,1.5296]
[1747243499696,34.13472231,173.77,173.74,1.5296]
[1747243500107,34.13472231,173.77,173.73,0.1875]
[1747243500108,28.37998905,173.75,173.73,0.1875]
[1747243500410,5.75473326,173.77,173.73,28.56748905]
[1747243500987,5.75473326,173.77,173.75,28.37998905]
[1747243501389,5.75473326,173.77,173.73,0.1875]
[1747243501603,5.75440211,173.78,173.74,28.37998905]
[1747243502002,5.75440211,173.78,173.75,28.37998905]
[1747243502892,34.13306694,173.82,173.77,28.37998905]
[1747243503522,20.12998216,173.87,173.77,28.37998905]
[1747243503726,28.37998905,173.82,173.77,1.5048]
[1747243504013,28.37998905,173.82,173.77,29.88478905]
[1747243504214,20.12998216,173.87,173.79,28.37998905]
[1747243504530,48.50997121,173.87,173.82,28.37998905]
[1747243504832,5.75142347,173.87,173.84,28.37998905]
[1747243505197,0.5,173.86,173.84,28.37998905]
[1747243505595,5.75142347,173.87,173.84,28.37998905]
[1747243505813,5.75114068,173.88,173.85,28.37998905]
[1747243506487,14.37408008,173.93,173.82,19.94197746]
[1747243506488,5.74977,173.92,173.87,28.37998905]
[1747243506697,34.12975905,173.92,173.87,28.37998905]
[1747243507025,5.74977,173.92,173.88,28.37998905]
[1747243507518,5.7510927,173.88,173.82,7.918]
[1747243507683,28.37998905,173.86,173.82,7.918]
[1747243508122,28.37998905,173.84,173.82,7.918]
[1747243508423,20.12882446,173.88,173.78,33.2104]
[1747243508424,28.37998905,173.83,173.78,33.2104]
[1747243508631,28.37998905,173.82,173.78,33.2104]
[1747243508988,28.37998905,173.82,173.78,6.4504]
[1747243509195,77.26427704,173.88,173.78,6.4504]
[1747243509196,28.37998905,173.81,173.78,6.4504]
[1747243509422,28.37998905,173.81,173.77,1.6063]
[1747243509620,5.75373993,173.8,173.77,1.6063]
[1747243509819,28.37998905,173.78,173.73,0.1875]
[1747243510038,28.37998905,173.75,173.73,0.1875]
[1747243510201,20.13808975,173.8,173.73,0.1875]
[1747243510731,20.13808975,173.8,173.74,28.37998905]
[1747243510935,28.37998905,173.79,173.74,28.37998905]
[1747243511096,28.37998905,173.75,173.73,0.1875]
[1747243511292,28.37998905,173.74,173.73,0.1875]
[1747243511493,3.0422,173.78,173.73,0.1875]
[1747243511801,34.13571599,173.74,173.73,0.1875]
[1747243512529,76.90502241,173.74,173.68,0.5]
[1747243512714,28.37998905,173.69,173.68,0.5]
[1747243513228,28.37998905,173.69,173.57,1.151767]
[1747243513543,28.37998905,173.58,173.56,8.1087]
[1747243513834,34.14002591,173.61,173.53,1.15197704]
[1747243514048,28.37998905,173.57,173.56,16.577]
[1747243515815,26.0,173.62,173.56,16.577]
[1747243516327,0.5,173.6,173.56,16.577]
[1747243516705,28.37998905,173.59,173.56,16.577]
[1747243517336,28.37998905,173.57,173.56,16.577]
[1747243517543,5.75937338,173.63,173.56,16.577]
[1747243517744,26.0,173.67,173.56,16.577]
[1747243517745,20.15511929,173.66,173.56,16.577]
[1747243517906,28.37998905,173.57,173.56,16.577]
[1747243518110,20.15511929,173.66,173.56,16.577]
[1747243518111,26.0,173.64,173.56,16.577]
[1747243518310,28.37998905,173.57,173.56,16.577]
[1747243518720,26.0,173.61,173.56,16.577]
[1747243519022,28.37998905,173.57,173.56,16.577]
[1747243519220,26.0,173.61,173.56,16.577]
[1747243519431,28.37998905,173.57,173.56,16.577]
[1747243519665,34.14135334,173.57,173.56,16.577]
[1747243520635,5.76136429,173.57,173.56,16.577]
[1747243521022,34.14135334,173.57,173.56,16.577]
[1747243521451,34.64135334,173.57,173.56,16.577]
[1747243522125,6.26136429,173.57,173.56,16.577]
[1747243522339,34.64135334,173.57,173.56,16.577]
[1747243522545,6.26136429,173.57,173.56,16.577]
[1747243523228,34.64135334,173.57,173.56,16.577]
[1747243524770,6.26136429,173.57,173.56,16.577]
[1747243524938,34.64135334,173.57,173.56,16.577]
[1747243525250,26.0,173.56,173.49,3.54359867]
[1747243525574,26.0,173.56,173.42,0.1875]
[1747243525575,54.37998905,173.5,173.42,0.1875]
[1747243525756,28.37998905,173.44,173.42,0.1875]
[1747243525952,28.37998905,173.45,173.42,0.1875]
[1747243526291,26.0,173.46,173.42,0.1875]
[1747243526570,56.7599781,173.43,173.42,0.1875]
[1747243526783,26.0,173.43,173.42,0.1875]
[1747243527078,26.0,173.4,173.26,5.77167263]
[1747243527240,28.37998905,173.34,173.28,28.37998905]
[1747243527437,43.60935394,173.36,173.3,43.60935394]
[1747243527671,26.0,173.4,173.29,43.60935394]
[1747243527672,5.76734529,173.39,173.29,43.60935394]
[1747243527948,5.76734529,173.39,173.3,43.60935394]
[1747243527949,43.60935394,173.36,173.3,43.60935394]
[1747243528146,31.76706494,173.4,173.29,18.64964886]
[1747243528345,31.76706494,173.4,173.27,5.77133952]
[1747243528579,31.76706494,173.4,173.3,43.60935394]
[1747243528783,31.76706494,173.4,173.27,5.77133952]
[1747243528784,31.76706494,173.4,173.28,43.60935394]
[1747243528939,43.60935394,173.33,173.28,43.60935394]
[1747243529274,43.60935394,173.34,173.28,43.60935394]
[1747243529457,43.60935394,173.34,173.29,43.60935394]
[1747243529769,60.97774276,173.43,173.31,43.60935394]
[1747243529950,43.60935394,173.37,173.32,43.60935394]
[1747243530144,5.76634759,173.42,173.3,51.50343912]
[1747243530346,43.60935394,173.4,173.35,43.60935394]
[1747243530566,43.60935394,173.39,173.3,32.85379026]
[1747243530870,43.60935394,173.41,173.35,43.60935394]
[1747243531294,43.60935394,173.42,173.37,43.60935394]
[1747243531507,14.41026398,173.49,173.4,43.60935394]
[1747243531508,5.76402098,173.49,173.4,43.60935394]
[1747243531661,43.60935394,173.42,173.38,5.76767793]
[1747243531861,5.76402098,173.49,173.38,5.76767793]
[1747243532085,43.60935394,173.44,173.39,43.60935394]
[1747243532294,5.76402098,173.49,173.38,5.76767793]
[1747243532591,43.60935394,173.43,173.38,5.76767793]
[1747243532767,5.76435323,173.48,173.38,49.37703187]
[1747243532965,43.60935394,173.44,173.39,43.60935394]
[1747243533275,2.85257448,173.47,173.35,7.734]
[1747243533477,43.60935394,173.4,173.35,51.34335394]
[1747243533791,43.60935394,173.42,173.37,43.60935394]
[1747243534096,43.60935394,173.41,173.35,7.734]
[1747243534274,43.60935394,173.41,173.33,1.15328884]
[1747243534275,43.60935394,173.36,173.3,43.60935394]
[1747243534583,43.60935394,173.37,173.32,43.60935394]
[1747243534811,14.41528487,173.43,173.34,43.60935394]
[1747243535110,43.60935394,173.4,173.35,43.60935394]
[1747243535277,14.41528487,173.43,173.32,5.76961998]
[1747243535479,43.60935394,173.39,173.34,43.60935394]
[1747243535792,14.41528487,173.43,173.31,5.76994235]
[1747243535793,43.60935394,173.38,173.31,5.76994235]
[1747243536105,43.60935394,173.37,173.32,43.60935394]
[1747243536286,43.60935394,173.4,173.35,43.60935394]
[1747243536488,20.17872585,173.45,173.36,43.60935394]
[1747243536690,0.5,173.37,173.33,1.15329612]
[1747243536999,14.41337561,173.45,173.33,1.15329612]
[1747243537200,20.17174801,173.51,173.34,18.933972]
[1747243537371,48.9885309,173.51,173.33,18.79181043]
[1747243537574,26.0,173.48,173.34,0.14216157]
[1747243537774,43.60935394,173.46,173.41,43.60935394]
[1747243538207,43.60935394,173.45,173.4,43.60935394]
[1747243538591,5.76568265,173.44,173.4,43.60935394]
[1747243538810,63.78924323,173.44,173.39,43.60935394]
[1747243539306,43.60935394,173.4,173.29,1.6283]
[1747243539601,43.60935394,173.35,173.29,1.6283]
[1747243539803,43.60935394,173.35,173.3,43.60935394]
[1747243539977,43.60935394,173.34,173.29,45.23765394]
[1747243540176,43.60935394,173.35,173.3,43.60935394]
[1747243540721,49.37836282,173.34,173.29,45.23765394]
[1747243540881,63.80088503,173.34,173.29,45.23765394]
[1747243541075,43.60935394,173.31,173.22,1.15386328]
[1747243541335,43.60935394,173.29,173.24,43.60935394]
[1747243541816,49.03657551,173.34,173.23,43.60935394]
[1747243541974,92.64592945,173.34,173.22,1.15386328]
[1747243542180,92.64592945,173.34,173.19,8.0443]
[1747243542181,43.60935394,173.25,173.19,8.0443]
[1747243542484,43.60935394,173.29,173.24,43.60935394]
[1747243542674,49.3803604,173.28,173.23,43.60935394]
[1747243543094,0.5,173.33,173.26,43.60935394]
[1747243543296,34.60606759,173.38,173.23,43.60935394]
[1747243543505,20.18687276,173.38,173.29,43.60935394]
[1747243543809,43.60935394,173.33,173.28,43.60935394]
[1747243544185,43.60935394,173.34,173.29,43.60935394]
[1747243544714,5.76934171,173.33,173.29,43.60935394]
[1747243545008,43.60935394,173.36,173.32,43.60935394]
[1747243545301,5.76701268,173.4,173.34,43.60935394]
[1747243545803,49.37636662,173.4,173.35,43.60935394]
[1747243546310,43.60935394,173.39,173.34,43.60935394]
[1747243546904,49.37703187,173.38,173.33,51.55555394]
[1747243547206,43.60935394,173.37,173.33,7.9462]
[1747243547404,43.60935394,173.35,173.33,7.9462]
[1747243547612,43.60935394,173.34,173.33,1.5245]
[1747243547808,49.87703187,173.38,173.33,45.13385394]
[1747243547988,254.66331953,173.48,173.35,43.60935394]
[1747243547989,20.17639937,173.47,173.35,43.60935394]
[1747243548314,20.17639937,173.47,173.37,43.60935394]
[1747243548490,20.17639937,173.47,173.38,43.60935394]
[1747243548694,5.76634759,173.42,173.38,43.60935394]
[1747243549196,5.76634759,173.42,173.39,43.60935394]
[1747243549389,5.76604854,173.43,173.39,43.60935394]
[1747243550215,5.76604854,173.43,173.34,62.2590028]
[1747243550216,43.60935394,173.41,173.34,18.933972]
[1747243550421,43.60935394,173.4,173.35,43.60935394]
[1747243550793,5.76734529,173.39,173.36,43.60935394]
[1747243551308,43.60935394,173.41,173.36,43.60935394]
[1747243552311,43.60935394,173.41,173.35,43.60935394]
[1747243552521,44.10935394,173.4,173.35,43.60935394]
[1747243552816,5.76734529,173.39,173.36,43.60935394]
[1747243553608,5.76734529,173.39,173.38,43.60935394]
[1747243554320,20.17523632,173.48,173.38,43.60935394]
[1747243554500,43.60935394,173.44,173.39,43.60935394]
[1747243554918,5.7660151,173.43,173.4,43.60935394]
[1747243555114,5.7660151,173.43,173.37,18.933972]
[1747243555115,20.18105286,173.43,173.36,31.89322666]
[1747243555314,43.60935394,173.41,173.36,74.34935394]
[1747243555487,43.60935394,173.39,173.36,30.74]
[1747243556013,43.60935394,173.42,173.37,43.60935394]
[1747243556921,49.37603406,173.41,173.37,43.60935394]
[1747243557302,5.76668012,173.41,173.38,43.60935394]
[1747243557506,49.37603406,173.41,173.37,43.60935394]
[1747243557805,49.37603406,173.41,173.36,74.34935394]
[1747243558205,5.76668012,173.41,173.36,74.34935394]
[1747243558526,43.60935394,173.4,173.36,74.34935394]
[1747243558896,5.76668012,173.41,173.38,43.60935394]
[1747243560125,49.37603406,173.41,173.37,43.60935394]
[1747243560427,49.37603406,173.41,173.36,31.89323015]
[1747243560428,43.60935394,173.38,173.36,30.74]
[1747243560622,43.60935394,173.4,173.36,30.74]
[1747243560834,28.82921095,173.44,173.38,43.60935394]
[1747243560835,5.76634759,173.42,173.38,43.60935394]
[1747243561515,43.60935394,173.41,173.37,43.60935394]
[1747243561716,49.37570153,173.42,173.38,43.60935394]
[1747243561903,138.2,173.47,173.38,43.60935394]
[1747243561904,5.76501787,173.46,173.4,43.60935394]
[1747243562104,5.76501787,173.46,173.41,43.60935394]
[1747243562298,43.60935394,173.44,173.39,63.69632386]
[1747243562705,43.60935394,173.44,173.4,43.60935394]
[1747243562907,39.37534526,173.44,173.39,63.69632386]
[1747243563094,152.6122444,173.47,173.4,43.60935394]
[1747243563095,14.4122444,173.47,173.4,43.60935394]
[1747243563300,14.40975289,173.5,173.42,28.70805301]
[1747243563502,28.70805301,173.48,173.43,28.70805301]
[1747243563702,5.76335657,173.51,173.46,28.70805301]
[1747243564234,5.76335657,173.51,173.45,28.70805301]
[1747243564415,5.76335657,173.51,173.46,28.70805301]
[1747243564617,5.76335657,173.51,173.45,18.933972]
[1747243564827,28.70805301,173.51,173.46,29.86053499]
[1747243565137,34.47166208,173.51,173.46,29.86053499]
[1747243565316,28.70805301,173.49,173.45,28.70805301]
[1747243565514,28.70805301,173.48,173.44,32.343]
[1747243565737,28.70805301,173.48,173.44,61.05105301]
[1747243565941,28.70805301,173.48,173.44,32.343]
[1747243566237,28.70805301,173.49,173.44,61.05105301]
[1747243566831,5.76360907,173.51,173.44,61.05105301]
[1747243567134,34.47207399,173.49,173.45,1.15268065]
[1747243567319,34.47207399,173.49,173.44,61.05105301]
[1747243567915,5.76335657,173.51,173.45,28.70805301]
[1747243568119,5.76236026,173.54,173.5,28.70805301]
[1747243568521,34.47041327,173.54,173.49,28.70805301]
[1747243568741,28.70805301,173.53,173.48,28.70805301]
[1747243568918,28.70805301,173.52,173.47,28.70805301]
[1747243569117,5.76335657,173.51,173.47,28.70805301]
[1747243569825,20.17174801,173.51,173.47,28.70805301]
[1747243570011,28.70805301,173.49,173.45,28.70805301]
[1747243570216,28.70805301,173.5,173.45,28.70805301]
[1747243570459,5.76309705,173.52,173.49,28.70805301]
[1747243570734,14.40369118,173.57,173.5,28.70805301]
[1747243570934,14.40369118,173.57,173.51,28.70805301]
[1747243571154,5.76169624,173.56,173.51,28.70805301]
[1747243571313,5.76169624,173.56,173.52,28.70805301]
[1747243571630,5.76169624,173.56,173.49,6.91634172]
[1747243571631,5.76169624,173.56,173.53,28.70805301]
[1747243571815,5.7607005,173.59,173.54,28.70805301]
[1747243572019,28.70805301,173.57,173.52,28.70805301]
[1747243572269,28.70805301,173.57,173.49,1.15232206]
[1747243572270,51.87985634,173.59,173.49,1.15232206]
[1747243572426,28.70805301,173.5,173.45,28.70805301]
[1747243572745,28.70805301,173.5,173.44,1.603]
[1747243572950,28.70805301,173.5,173.39,30.85268796]
[1747243572951,28.70805301,173.45,173.3,10.0]
[1747243573253,5.76621862,173.43,173.39,28.70805301]
[1747243573475,5.76621862,173.43,173.41,28.70805301]
[1747243573764,5.76621862,173.43,173.4,28.70805301]
[1747243574425,5.76621862,173.43,173.39,30.28825301]
[1747243574625,5.76621862,173.43,173.41,28.70805301]
[1747243574834,5.76501787,173.46,173.42,28.70805301]
[1747243575052,28.81749179,173.51,173.42,28.70805301]
[1747243575375,28.70805301,173.49,173.44,28.70805301]
[1747243575571,28.81749179,173.51,173.44,43.537863]
[1747243575862,43.537863,173.49,173.44,43.537863]
[1747243576047,43.537863,173.49,173.45,43.537863]
[1747243576245,43.537863,173.5,173.45,43.537863]
[1747243576469,43.537863,173.49,173.44,43.537863]
[1747243576646,43.537863,173.48,173.44,43.537863]
[1747243577035,5.76468553,173.47,173.44,43.537863]
[1747243578353,5.76468553,173.47,173.45,43.537863]
[1747243578534,5.76402098,173.49,173.46,43.537863]
[1747243579163,14.40798682,173.52,173.41,36.4437184]
[1747243579164,49.30022326,173.54,173.48,43.537863]
[1747243579472,63.70612391,173.54,173.49,43.537863]
[1747243579776,5.76236026,173.54,173.51,43.537863]
[1747243579974,5.76236026,173.54,173.52,43.537863]
[1747243580180,5.76169624,173.56,173.53,43.537863]
[1747243580481,5.76169624,173.56,173.5,1.15231286]
[1747243580482,5.76169624,173.56,173.54,43.537863]
[1747243580983,5.76169624,173.56,173.53,43.537863]
[1747243581152,14.40143983,173.6,173.53,43.537863]
[1747243581475,43.537863,173.59,173.54,43.537863]
[1747243581901,49.29789986,173.61,173.56,43.537863]
[1747243582183,63.69799202,173.61,173.56,43.537863]
[1747243582377,20.16012902,173.61,173.56,43.537863]
[1747243582685,63.69799202,173.61,173.57,43.537863]
[1747243582856,20.16012902,173.61,173.57,43.537863]
[1747243583051,20.16012902,173.61,173.56,43.537863]
[1747243583263,43.537863,173.63,173.58,43.537863]
[1747243583883,31.7040038,173.65,173.58,43.537863]
[1747243584083,43.537863,173.63,173.58,43.537863]
[1747243584257,43.537863,173.63,173.55,6.5273]
[1747243584580,31.7040038,173.65,173.57,43.537863]
[1747243584884,43.537863,173.62,173.57,43.537863]
[1747243585082,43.537863,173.6,173.55,50.065163]
[1747243585288,5.7607005,173.59,173.56,43.537863]
[1747243585847,5.7607005,173.59,173.57,43.537863]
[1747243586159,5.7607005,173.59,173.56,43.537863]
[1747243586357,5.7607005,173.59,173.57,43.537863]
[1747243587279,5.76036866,173.6,173.58,43.537863]
[1747243587466,5.76036866,173.6,173.59,43.537863]
[1747243588565,14.39635698,173.66,173.59,43.537863]
[1747243588795,14.39635698,173.66,173.64,43.537863]
[1747243589166,14.39635698,173.66,173.59,20.0855787]
[1747243589167,20.15126646,173.69,173.65,43.537863]
[1747243589397,63.68912946,173.69,173.65,43.537863]
[1747243589588,20.15126646,173.69,173.65,43.537863]
[1747243589896,63.68912946,173.69,173.64,43.537863]
[1747243590081,20.15126646,173.69,173.61,43.537863]
[1747243590265,43.537863,173.66,173.61,43.537863]
[1747243590466,43.537863,173.65,173.61,43.537863]
[1747243591191,5.75937338,173.63,173.59,43.537863]
[1747243591377,5.75937338,173.63,173.55,50.065163]
[1747243591378,43.537863,173.6,173.55,50.065163]
[1747243591578,43.537863,173.62,173.57,43.537863]
[1747243591886,5.75937338,173.63,173.6,43.537863]
[1747243592868,49.29723638,173.63,173.59,43.537863]
[1747243593088,5.75937338,173.63,173.59,43.537863]
[1747243593289,43.537863,173.64,173.56,18.79181043]
[1747243593509,43.537863,173.64,173.59,43.537863]
[1747243594086,43.537863,173.6,173.55,6.5273]
[1747243594377,43.537863,173.58,173.55,6.5273]
[1747243595198,5.76136429,173.57,173.55,6.5273]
[1747243595381,138.2,173.66,173.55,6.5273]
[1747243595382,43.537863,173.63,173.56,43.537863]
[1747243595708,57.93681033,173.63,173.58,43.537863]
[1747243595885,43.537863,173.62,173.57,43.537863]
[1747243596291,43.537863,173.63,173.58,43.537863]
[1747243597087,20.15548516,173.65,173.58,43.537863]
[1747243597287,43.537863,173.62,173.56,18.79181043]
[1747243597488,28.66220362,173.62,173.58,28.66220362]
[1747243597806,28.66220362,173.62,173.56,18.79181043]
[1747243597807,28.66220362,173.62,173.57,28.66220362]
[1747243598106,20.15548516,173.65,173.57,28.66220362]
[1747243598275,28.66220362,173.62,173.57,28.66220362]
[1747243598476,20.15548516,173.65,173.56,28.66220362]
[1747243598477,28.66220362,173.61,173.56,28.66220362]
[1747243598986,28.66220362,173.62,173.57,28.66220362]
[1747243599416,5.76003686,173.61,173.57,28.66220362]
[1747243601202,34.42124531,173.64,173.59,28.66220362]
[1747243601409,5.75904169,173.64,173.6,28.66220362]
[1747243601579,5.75804687,173.67,173.62,28.66220362]
[1747243601901,34.42025049,173.67,173.62,28.66220362]
[1747243602096,5.75804687,173.67,173.62,28.66220362]
[1747243602407,28.66220362,173.66,173.61,28.66220362]
[1747243603587,5.75871004,173.65,173.61,28.66220362]
[1747243604189,48.81768878,173.65,173.6,28.66220362]
[1747243604594,48.81768878,173.65,173.57,0.28432314]
[1747243604782,48.81768878,173.65,173.6,28.66220362]
[1747243604997,34.42091366,173.65,173.6,28.66220362]
[1747243605300,5.75871004,173.65,173.6,28.66220362]
[1747243605506,28.66220362,173.65,173.6,28.66220362]
[1747243605705,28.66220362,173.7,173.6,28.66220362]
[1747243605706,34.52442602,173.79,173.64,54.66220362]
[1747243605877,34.52442602,173.79,173.68,28.66220362]
[1747243605878,63.18662964,173.79,173.68,28.66220362]
[1747243606074,63.18662964,173.79,173.67,28.66220362]
[1747243606279,20.13924851,173.79,173.7,28.66220362]
[1747243606511,20.13924851,173.79,173.71,28.66220362]
[1747243606684,28.66220362,173.77,173.72,28.66220362]
[1747243606885,20.13924851,173.79,173.71,28.66220362]
[1747243607219,28.66220362,173.76,173.71,28.66220362]
[1747243607390,28.66220362,173.77,173.72,28.66220362]
[1747243607835,5.75440211,173.78,173.73,28.66220362]
[1747243607983,34.41660573,173.78,173.73,28.66220362]
[1747243608285,5.75440211,173.78,173.74,1.15085682]
[1747243608480,5.75440211,173.78,173.76,28.66220362]
[1747243609296,5.75440211,173.78,173.75,28.66220362]
[1747243609484,20.13924851,173.79,173.74,28.66220362]
[1747243609677,28.66220362,173.78,173.73,28.66220362]
[1747243609994,20.13924851,173.79,173.74,28.66220362]
[1747243610506,48.80145213,173.79,173.74,28.66220362]
[1747243610818,20.13924851,173.79,173.74,28.66220362]